fUSD/lending_fUSD_20240814
["ID","MTS","AMOUNT","RATE_DAILY","PERIOD"]
[334829103,1723605094563,-3072.29,0.00014794,2]
[334829104,1723605094572,-500.0,0.00014794,2]
[334829105,1723605094581,-500.0,0.00014794,2]
[334829106,1723605094591,-996.29,0.00014794,2]
[334829107,1723605094603,-2553.52,0.00014794,2]
[334829108,1723605094613,-862.29,0.00014794,2]
[334829109,1723605094623,-1865.83,0.00014794,2]
[334829110,1723605094632,-1066.91,0.00014794,2]
[334829111,1723605094643,-510.47147998,0.00014794,2]
[334829112,1723605094652,-10401.13,0.00014794,2]
[334829113,1723605094661,-708.61,0.00014794,2]
[334829114,1723605094671,-500.0,0.00014794,2]
[334829115,1723605094681,-4853.34,0.00014794,2]
[334829116,1723605094690,-500.0,0.00014794,2]
[334829117,1723605094700,-2646.9,0.00014794,2]
[334829118,1723605094710,-500.0,0.00014794,2]
[334829119,1723605094720,-500.0,0.00014794,2]
[334829120,1723605094731,-500.0,0.00014794,2]
[334829121,1723605094742,-500.0,0.00014794,2]
[334829122,1723605094752,-500.0,0.00014794,2]
[334829123,1723605094763,-8054.04,0.00014794,2]
[334829124,1723605094773,-3569.57,0.00014794,2]
[334829125,1723605094784,-4502.45,0.00014794,2]
[334829126,1723605094794,-1513.43,0.00014794,2]
[334829127,1723605094803,-499.32924169,0.00014794,2]
[334829128,1723605094948,-1672.01,0.00014794,2]
[334829129,1723605094958,-1382.21,0.00014794,2]
[334829130,1723605094968,-500.0,0.00014794,2]
[334829131,1723605094978,-500.0,0.00014794,2]
[334829132,1723605094988,-500.0,0.00014794,2]
[334829133,1723605094998,-30978.45,0.00014794,2]
[334829134,1723605095008,-808.08,0.00014794,2]
[334829135,1723605095017,-1117.17,0.00014794,2]
[334829136,1723605095027,-500.0,0.00014794,2]
[334829137,1723605095037,-1667.3,0.00014794,2]
[334829138,1723605095047,-2412.04,0.00014794,2]
[334829139,1723605095057,-518.36874043,0.00014794,2]
[334829140,1723605095066,-9957.53,0.00014794,2]
[334829141,1723605095075,-541.43,0.00014794,2]
[334829142,1723605095085,-1421.86,0.00014794,2]
[334829143,1723605095094,-1350.79,0.00014794,2]
[334829144,1723605095109,-3315.49,0.00014794,2]
[334829145,1723605095119,-500.0,0.00014794,2]
[334829146,1723605095129,-5365.68,0.00014794,2]
[334829147,1723605095139,-510.65124238,0.00014794,2]
[334829148,1723605095148,-1559.83,0.00014794,2]
[334829149,1723605095158,-500.0,0.00014794,2]
[334829150,1723605095169,-500.0,0.00014794,2]
[334829151,1723605095179,-5871.12,0.00014794,2]
[334829152,1723605095190,-1637.79,0.00014794,2]
[334829153,1723605095199,-500.0,0.00014794,2]
[334829154,1723605095209,-1965.79,0.00014794,2]
[334829155,1723605095219,-500.0,0.00014794,2]
[334829156,1723605095229,-1378.04,0.00014794,2]
[334829157,1723605095239,-500.0,0.00014794,2]
[334829158,1723605095249,-1616.8,0.00014794,2]
[334829159,1723605095259,-3530.55,0.00014794,2]
[334829160,1723605095268,-1964.9,0.00014794,2]
[334829161,1723605095278,-500.0,0.00014794,2]
[334829162,1723605095287,-500.0,0.00014794,2]
[334829163,1723605095297,-523.48,0.00014794,2]
[334829164,1723605095307,-500.0,0.00014794,2]
[334829165,1723605095316,-321.56738359,0.00014794,2]
[334829166,1723605095326,-995.8,0.00014794,2]
[334829167,1723605095337,-500.0,0.00014794,2]
[334829168,1723605095347,-1158.06,0.00014794,2]
[334829169,1723605095359,-1058.49,0.00014794,2]
[334829170,1723605095369,-500.0,0.00014794,2]
[334829171,1723605095378,-1771.71,0.00014794,2]
[334829172,1723605095389,-2095.59,0.00014794,2]
[334829173,1723605095399,-500.0,0.00014794,2]
[334829174,1723605095409,-500.0,0.00014794,2]
[334829175,1723605095420,-500.0,0.00014794,2]
[334829176,1723605095430,-5450.64,0.00014794,2]
[334829177,1723605095440,-980.96,0.00014794,2]
[334829178,1723605095450,-1436.17,0.00014794,2]
[334829179,1723605095459,-2445.12,0.00014794,2]
[334829180,1723605095469,-500.0,0.00014794,2]
[334829181,1723605095479,-506.61104917,0.00014794,2]
[334829182,1723605095489,-4063.03,0.00014794,2]
[334829183,1723605095499,-802.79,0.00014794,2]
[334829184,1723605095508,-500.0,0.00014794,2]
[334829185,1723605095518,-500.0,0.00014794,2]
[334829186,1723605095528,-500.0,0.00014794,2]
[334829187,1723605095539,-1957.25,0.00014794,2]
[334829188,1723605095549,-821.33,0.00014794,2]
[334829189,1723605095559,-7067.94,0.00014794,2]
[334829190,1723605095569,-500.0,0.00014794,2]
[334829191,1723605095579,-2774.43,0.00014794,2]
[334829192,1723605095589,-500.0,0.00014794,2]
[334829193,1723605095601,-500.0,0.00014794,2]
[334829194,1723605095610,-500.0,0.00014794,2]
[334829195,1723605095620,-1772.9,0.00014794,2]
[334829196,1723605095631,-500.0,0.00014794,2]
[334829197,1723605095641,-2215.88,0.00014794,2]
[334829198,1723605095651,-4957.02,0.00014794,2]
[334829199,1723605095661,-500.0,0.00014794,2]
[334829200,1723605095672,-500.0,0.00014794,2]
[334829201,1723605095681,-2209.2,0.00014794,2]
[334829202,1723605095691,-275.15839089,0.00014794,2]
[334829203,1723605095700,-500.0,0.00014794,2]
[334829204,1723605095711,-500.0,0.00014794,2]
[334829205,1723605095721,-3061.51,0.00014794,2]
[334829206,1723605095731,-249.60356411,0.00014794,2]
[334829207,1723605095741,-1481.57,0.00014794,2]
[334829208,1723605095751,-500.0,0.00014794,2]
[334829209,1723605095761,-3686.74,0.00014794,2]
[334829210,1723605095771,-500.0,0.00014794,2]
[334829211,1723605095781,-621.29938206,0.00014794,2]
[334829212,1723605095791,-500.0,0.00014794,2]
[334829213,1723605095801,-500.0,0.00014794,2]
[334829214,1723605095811,-6552.26,0.00014794,2]
[334829215,1723605095821,-10224.05,0.00014794,2]
[334829216,1723605095831,-500.0,0.00014794,2]
[334829217,1723605095841,-500.0,0.00014794,2]
[334829218,1723605095851,-621.89009641,0.00014794,2]
[334829219,1723605095861,-5926.55,0.00014794,2]
[334829220,1723605095871,-2121.42,0.00014794,2]
[334829221,1723605095881,-1373.93,0.00014794,2]
[334829222,1723605095891,-500.0,0.00014794,2]
[334829223,1723605095901,-1097.71,0.00014794,2]
[334829224,1723605095911,-607.8,0.00014794,2]
[334829225,1723605095921,-2009.46,0.00014794,2]
[334829226,1723605095932,-500.0,0.00014794,2]
[334829227,1723605095942,-3557.64,0.00014794,2]
[334829228,1723605095952,-613.33,0.00014794,2]
[334829229,1723605095962,-500.0,0.00014794,2]
[334829230,1723605095972,-3282.55,0.00014794,2]
[334829231,1723605095982,-2903.06,0.00014794,2]
[334829232,1723605095992,-2177.71,0.00014794,2]
[334829233,1723605096002,-500.0,0.00014794,2]
[334829234,1723605096012,-982.92,0.00014794,2]
[334829235,1723605096021,-308.83307314,0.00014794,2]
[334829236,1723605096031,-19581.8,0.00014794,2]
[334829237,1723605096040,-500.0,0.00014794,2]
[334829238,1723605096050,-901.82,0.00014794,2]
[334829239,1723605096060,-500.0,0.00014794,2]
[334829240,1723605096070,-500.0,0.00014794,2]
[334829241,1723605096079,-500.0,0.00014794,2]
[334829242,1723605096088,-645.39,0.00014794,2]
[334829243,1723605096098,-503.71,0.00014794,2]
[334829244,1723605096109,-500.0,0.00014794,2]
[334829245,1723605096120,-1937.79,0.00014794,2]
[334829246,1723605096129,-559.53,0.00014794,2]
[334829247,1723605096139,-14794.65,0.00014794,2]
[334829248,1723605096149,-505.44,0.00014794,2]
[334829249,1723605096158,-498.3871935,0.00014794,2]
[334829250,1723605096168,-500.0,0.00014794,2]
[334829251,1723605096177,-6442.8,0.00014794,2]
[334829252,1723605096187,-646.11,0.00014794,2]
[334829253,1723605096197,-4533.79,0.00014794,2]
[334829254,1723605096206,-500.0,0.00014794,2]
[334829255,1723605096216,-500.0,0.00014794,2]
[334829256,1723605096225,-1262.87,0.00014794,2]
[334829257,1723605096235,-921.69,0.00014794,2]
[334829258,1723605096244,-500.0,0.00014794,2]
[334829259,1723605096254,-500.0,0.00014794,2]
[334829260,1723605096263,-3002.74,0.00014794,2]
[334829261,1723605096273,-3535.51,0.00014794,2]
[334829262,1723605096282,-7782.05,0.00014794,2]
[334829263,1723605096291,-500.0,0.00014794,2]
[334829264,1723605096302,-500.0,0.00014794,2]
[334829265,1723605096311,-617.55,0.00014794,2]
[334829266,1723605096321,-1681.03,0.00014794,2]
[334829267,1723605096331,-5884.62,0.00014794,2]
[334829268,1723605096342,-1212.09,0.00014794,2]
[334829269,1723605096352,-1178.67,0.00014794,2]
[334829270,1723605096361,-2997.53,0.00014794,2]
[334829271,1723605096370,-500.0,0.00014794,2]
[334829272,1723605096380,-1667.2,0.00014794,2]
[334829273,1723605096390,-13353.51,0.00014794,2]
[334829274,1723605096399,-5572.93,0.00014794,2]
[334829275,1723605096409,-3987.19,0.00014794,2]
[334829276,1723605096419,-513.53896919,0.00014794,2]
[334829277,1723605096428,-6308.52,0.00014794,2]
[334829278,1723605096438,-3939.64,0.00014794,2]
[334829279,1723605096448,-19005.59,0.00014794,2]
[334829280,1723605096458,-500.0,0.00014794,2]
[334829281,1723605096467,-500.0,0.00014794,2]
[334829282,1723605096477,-500.0,0.00014794,2]
[334829283,1723605096487,-500.0,0.00014794,2]
[334829284,1723605096496,-1888.59,0.00014794,2]
[334829285,1723605096506,-500.0,0.00014794,2]
[334829286,1723605096516,-500.0,0.00014794,2]
[334829287,1723605096525,-4079.03,0.00014794,2]
[334829288,1723605096534,-2797.42,0.00014794,2]
[334829289,1723605096543,-500.0,0.00014794,2]
[334829290,1723605096553,-644.38,0.00014794,2]
[334829291,1723605096563,-500.0,0.00014794,2]
[334829292,1723605096573,-999.48,0.00014794,2]
[334829293,1723605096583,-500.0,0.00014794,2]
[334829294,1723605096592,-4551.83,0.00014794,2]
[334829295,1723605096602,-500.0,0.00014794,2]
[334829296,1723605096612,-1084.39,0.00014794,2]
[334829297,1723605096621,-7815.54,0.00014794,2]
[334829298,1723605096631,-500.0,0.00014794,2]
[334829299,1723605096641,-500.0,0.00014794,2]
[334829300,1723605096650,-7759.78,0.00014794,2]
[334829301,1723605096660,-1415.9,0.00014794,2]
[334829302,1723605096670,-500.0,0.00014794,2]
[334829303,1723605096679,-6685.67,0.00014794,2]
[334829304,1723605096688,-500.0,0.00014794,2]
[334829305,1723605096698,-500.0,0.00014794,2]
[334829306,1723605096707,-1701.31,0.00014794,2]
[334829307,1723605096716,-4953.62,0.00014794,2]
[334829308,1723605096726,-500.0,0.00014794,2]
[334829309,1723605096735,-1637.32,0.00014794,2]
[334829310,1723605096744,-1938.51,0.00014794,2]
[334829311,1723605096754,-1229.49,0.00014794,2]
[334829312,1723605096764,-500.0,0.00014794,2]
[334829313,1723605096773,-729.12,0.00014794,2]
[334829314,1723605096782,-500.0,0.00014794,2]
[334829315,1723605096792,-500.0,0.00014794,2]
[334829316,1723605096802,-5524.35,0.00014794,2]
[334829317,1723605096811,-500.0,0.00014794,2]
[334829318,1723605096820,-746.42,0.00014794,2]
[334829319,1723605096829,-500.0,0.00014794,2]
[334829320,1723605096839,-1241.19,0.00014794,2]
[334829321,1723605096849,-1084.25,0.00014794,2]
[334829322,1723605096861,-23349.91,0.00014794,2]
[334829323,1723605096871,-4711.28,0.00014794,2]
[334829324,1723605096881,-959.78,0.00014794,2]
[334829325,1723605096890,-1166.89,0.00014794,2]
[334829326,1723605096901,-500.0,0.00014794,2]
[334829327,1723605096910,-500.0,0.00014794,2]
[334829328,1723605096920,-920.13,0.00014794,2]
[334829329,1723605096929,-500.0,0.00014794,2]
[334829330,1723605096939,-4212.25,0.00014794,2]
[334829331,1723605096948,-1991.21,0.00014794,2]
[334829332,1723605096958,-566.69,0.00014794,2]
[334829333,1723605096968,-500.0,0.00014794,2]
[334829334,1723605096978,-500.0,0.00014794,2]
[334829335,1723605096987,-500.0,0.00014794,2]
[334829336,1723605096997,-3979.88,0.00014794,2]
[334829337,1723605097006,-500.0,0.00014794,2]
[334829338,1723605097015,-892.92132292,0.00014988,2]
[334829339,1723605097024,-892.92132292,0.00014988,2]
[334829340,1723605097034,-500.0,0.00015067,2]
[334829341,1723605097044,-500.0,0.00015067,2]
[334829342,1723605097054,-500.0,0.00015067,2]
[334829343,1723605097063,-500.0,0.00015068,2]
[334829344,1723605097073,-500.0,0.00015068,2]
[334829345,1723605097380,-1578.73,0.00015068,2]
[334829346,1723605097390,-500.0,0.00015068,2]
[334829347,1723605097400,-716.57,0.00015068,2]
[334829348,1723605097410,-500.0,0.00015068,2]
[334829349,1723605097420,-1456.16,0.00015068,2]
[334829350,1723605097430,-722.17,0.00015068,2]
[334829351,1723605097440,-666.82,0.00015068,2]
[334829352,1723605097449,-1288.24,0.00015068,2]
[334829353,1723605097459,-529.74,0.00015068,2]
[334829354,1723605097468,-608.2,0.00015068,2]
[334829355,1723605097477,-1485.87,0.00015068,2]
[334829356,1723605097487,-514.2,0.00015068,2]
[334829357,1723605097497,-517.05,0.00015068,2]
[334829358,1723605097507,-500.0,0.00015068,2]
[334829359,1723605097518,-500.0,0.00015068,2]
[334829360,1723605097529,-500.0,0.00015068,2]
[334829361,1723605097539,-642.75,0.00015068,2]
[334829362,1723605097549,-1111.14,0.00015068,2]
[334829363,1723605097559,-500.0,0.00015068,2]
[334829364,1723605097569,-500.0,0.00015068,2]
[334829365,1723605097580,-500.0,0.00015068,2]
[334829366,1723605097591,-651.1,0.00015068,2]
[334829367,1723605097601,-500.0,0.00015068,2]
[334829368,1723605097612,-1485.31,0.00015068,2]
[334829369,1723605097622,-500.0,0.00015068,2]
[334829370,1723605097633,-500.0,0.00015068,2]
[334829371,1723605097642,-1237.37,0.00015068,2]
[334829372,1723605097652,-500.0,0.00015068,2]
[334829373,1723605097662,-500.0,0.00015068,2]
[334829374,1723605097672,-500.0,0.00015068,2]
[334829375,1723605097682,-500.0,0.00015068,2]
[334829376,1723605097692,-500.0,0.00015068,2]
[334829377,1723605097702,-2683.95,0.00015068,2]
[334829378,1723605097712,-500.0,0.00015068,2]
[334829379,1723605097722,-500.0,0.00015068,2]
[334829380,1723605097733,-500.0,0.00015068,2]
[334829381,1723605097743,-500.0,0.00015068,2]
[334829382,1723605097754,-543.73,0.00015068,2]
[334829383,1723605097763,-1047.06,0.00015068,2]
[334829384,1723605097773,-244.20799165,0.00015068,2]
[334829385,1723605097783,-500.0,0.00015068,2]
[334829386,1723605097793,-500.0,0.00015068,2]
[334829387,1723605097803,-500.0,0.00015068,2]
[334829388,1723605097813,-1348.18,0.00015068,2]
[334829389,1723605097823,-1232.81,0.00015068,2]
[334829390,1723605097833,-1118.67,0.00015068,2]
[334829391,1723605097843,-500.0,0.00015068,2]
[334829392,1723605097853,-976.44,0.00015068,2]
[334829393,1723605097863,-500.0,0.00015068,2]
[334829394,1723605097874,-598.58,0.00015068,2]
[334829395,1723605097885,-500.0,0.00015068,2]
[334829396,1723605097895,-500.0,0.00015068,2]
[334829397,1723605097905,-400.24457537,0.00015068,2]
[334829398,1723605097915,-500.0,0.00015068,2]
[334829399,1723605097925,-775.08,0.00015068,2]
[334829400,1723605097935,-500.0,0.00015068,2]
[334829401,1723605097945,-500.0,0.00015068,2]
[334829402,1723605097955,-500.0,0.00015068,2]
[334829403,1723605097965,-500.0,0.00015068,2]
[334829404,1723605097975,-716.51,0.00015068,2]
[334829405,1723605097984,-630.58,0.00015068,2]
[334829406,1723605097994,-1000.0,0.00015068,2]
[334829407,1723605098004,-500.0,0.00015068,2]
[334829408,1723605098013,-500.0,0.00015068,2]
[334829409,1723605098023,-618.82,0.00015068,2]
[334829410,1723605098033,-1479.01,0.00015068,2]
[334829411,1723605098043,-559.42,0.00015068,2]
[334829412,1723605098053,-500.0,0.00015068,2]
[334829413,1723605098063,-500.0,0.00015068,2]
[334829414,1723605098073,-3752.58,0.00015068,2]
[334829415,1723605098083,-500.0,0.00015068,2]
[334829416,1723605098093,-591.66,0.00015068,2]
[334829417,1723605098103,-500.0,0.00015068,2]
[334829418,1723605098112,-500.0,0.00015068,2]
[334829419,1723605098123,-500.0,0.00015068,2]
[334829420,1723605098141,-228.93927837,0.00015068,2]
[334829421,1723605098153,-1435.79,0.00015068,2]
[334829422,1723605098163,-1607.61,0.00015068,2]
[334829423,1723605098174,-1891.11,0.00015068,2]
[334829424,1723605098184,-662.17,0.00015068,2]
[334829425,1723605098194,-924.42,0.00015068,2]
[334829426,1723605098204,-1076.95,0.00015068,2]
[334829427,1723605098215,-500.0,0.00015068,2]
[334829428,1723605098225,-500.0,0.00015068,2]
[334829429,1723605098235,-2239.55,0.00015068,2]
[334829430,1723605098245,-500.0,0.00015068,2]
[334829431,1723605098255,-672.35,0.00015068,2]
[334829432,1723605098265,-549.51531294,0.00015068,2]
[334829433,1723605098275,-4507.7,0.00015068,2]
[334829434,1723605098285,-500.0,0.00015068,2]
[334829435,1723605098295,-500.0,0.00015068,2]
[334829436,1723605098305,-1006.17,0.00015068,2]
[334829437,1723605098315,-500.0,0.00015068,2]
[334829438,1723605098325,-1053.16,0.00015068,2]
[334829439,1723605098335,-500.0,0.00015068,2]
[334829440,1723605098346,-500.0,0.00015068,2]
[334829441,1723605098358,-2456.38,0.00015068,2]
[334829442,1723605098368,-3482.29,0.00015068,2]
[334829443,1723605098378,-2187.52,0.00015068,2]
[334829444,1723605098388,-500.0,0.00015068,2]
[334829445,1723605098398,-500.0,0.00015068,2]
[334829446,1723605098408,-829.91,0.00015068,2]
[334829447,1723605098420,-500.0,0.00015068,2]
[334829448,1723605098430,-1703.74,0.00015068,2]
[334829449,1723605098441,-1971.7,0.00015068,2]
[334829450,1723605098451,-760.2,0.00015068,2]
[334829451,1723605098463,-1826.68,0.00015068,2]
[334829452,1723605098473,-500.0,0.00015068,2]
[334829453,1723605098485,-500.0,0.00015068,2]
[334829454,1723605098496,-2857.54,0.00015068,2]
[334829455,1723605098508,-302.39905666,0.00015068,2]
[334829456,1723605098518,-500.0,0.00015068,2]
[334829457,1723605098528,-500.0,0.00015068,2]
[334829458,1723605098538,-1745.81,0.00015068,2]
[334829459,1723605098548,-500.0,0.00015068,2]
[334829460,1723605098559,-2493.78,0.00015068,2]
[334829461,1723605098569,-500.0,0.00015068,2]
[334829462,1723605098579,-207.00496078,0.00015068,2]
[334829463,1723605098589,-500.0,0.00015068,2]
[334829464,1723605098600,-500.0,0.00015068,2]
[334829465,1723605098613,-2939.52,0.00015068,2]
[334829466,1723605098624,-893.52,0.00015068,2]
[334829467,1723605098635,-500.0,0.00015068,2]
[334829468,1723605098645,-1363.03,0.00015068,2]
[334829469,1723605098655,-500.0,0.00015068,2]
[334829470,1723605098666,-618.92343279,0.00015068,2]
[334829471,1723605098676,-500.0,0.00015068,2]
[334829472,1723605098686,-500.0,0.00015068,2]
[334829473,1723605098695,-2070.38,0.00015068,2]
[334829474,1723605098706,-4162.9,0.00015068,2]
[334829475,1723605098716,-500.0,0.00015068,2]
[334829476,1723605098727,-1237.73,0.00015068,2]
[334829477,1723605098737,-1715.05,0.00015068,2]
[334829478,1723605098747,-2002.18,0.00015068,2]
[334829479,1723605098759,-519.39,0.00015068,2]
[334829480,1723605098768,-1293.49,0.00015068,2]
[334829481,1723605098778,-500.0,0.00015068,2]
[334829482,1723605098788,-500.0,0.00015068,2]
[334829483,1723605098799,-1362.3,0.00015068,2]
[334829484,1723605098809,-1490.02,0.00015068,2]
[334829485,1723605098819,-2761.82,0.00015068,2]
[334829486,1723605098829,-694.54,0.00015068,2]
[334829487,1723605098839,-500.0,0.00015068,2]
[334829488,1723605098851,-500.0,0.00015068,2]
[334829489,1723605098862,-2115.54,0.00015068,2]
[334829490,1723605098871,-500.0,0.00015068,2]
[334829491,1723605098882,-500.0,0.00015068,2]
[334829492,1723605098891,-500.0,0.00015068,2]
[334829493,1723605098901,-1981.16,0.00015068,2]
[334829494,1723605098911,-1990.68,0.00015068,2]
[334829495,1723605098921,-500.0,0.00015068,2]
[334829496,1723605098931,-500.0,0.00015068,2]
[334829497,1723605098940,-332.21101028,0.00015068,2]
[334829498,1723605098950,-500.0,0.00015068,2]
[334829499,1723605098960,-711.09,0.00015068,2]
[334829500,1723605098971,-569.37,0.00015068,2]
[334829501,1723605098980,-2757.85,0.00015068,2]
[334829502,1723605098990,-500.0,0.00015068,2]
[334829503,1723605099000,-311.9232227,0.00015068,2]
[334829504,1723605099009,-500.0,0.00015068,2]
[334829505,1723605099019,-2766.44,0.00015068,2]
[334829506,1723605099029,-500.0,0.00015068,2]
[334829507,1723605099040,-1317.85,0.00015068,2]
[334829508,1723605099049,-500.0,0.00015068,2]
[334829509,1723605099059,-2961.75,0.00015068,2]
[334829510,1723605099069,-1308.18,0.00015068,2]
[334829511,1723605099079,-157.056626,0.00015068,2]
[334829512,1723605099089,-500.0,0.00015068,2]
[334829513,1723605099099,-500.0,0.00015068,2]
[334829514,1723605099110,-2490.28,0.00015068,2]
[334829515,1723605099120,-500.0,0.00015068,2]
[334829516,1723605099130,-330.55527491,0.00015068,2]
[334829517,1723605099140,-2203.39,0.00015068,2]
[334829518,1723605099150,-152.506681,0.00015068,2]
[334829519,1723605099160,-508.38,0.00015068,2]
[334829520,1723605099170,-500.0,0.00015068,2]
[334829521,1723605099180,-500.0,0.00015068,2]
[334829522,1723605099190,-878.97,0.00015068,2]
[334829523,1723605099200,-625.03750441,0.00015068,2]
[334829524,1723605099210,-500.0,0.00015068,2]
[334829525,1723605099219,-683.69,0.00015068,2]
[334829526,1723605099229,-1154.39,0.00015068,2]
[334829527,1723605099239,-1322.45,0.00015068,2]
[334829528,1723605099248,-500.0,0.00015068,2]
[334829529,1723605099258,-500.0,0.00015068,2]
[334829530,1723605099267,-500.0,0.00015068,2]
[334829531,1723605099276,-3824.63,0.00015068,2]
[334829532,1723605099286,-500.0,0.00015068,2]
[334829533,1723605099295,-2480.21,0.00015068,2]
[334829534,1723605099305,-553.9,0.00015068,2]
[334829535,1723605099315,-917.23,0.00015068,2]
[334829536,1723605099324,-1073.07,0.00015068,2]
[334829537,1723605099334,-500.0,0.00015068,2]
[334829538,1723605099345,-500.0,0.00015068,2]
[334829539,1723605099355,-500.0,0.00015068,2]
[334829540,1723605099365,-500.0,0.00015068,2]
[334829541,1723605099374,-1290.02,0.00015068,2]
[334829542,1723605099384,-649.52,0.00015068,2]
[334829543,1723605099394,-3127.31,0.00015068,2]
[334829544,1723605099403,-1748.45,0.00015068,2]
[334829545,1723605099413,-858.47,0.00015068,2]
[334829546,1723605099423,-793.31,0.00015068,2]
[334829547,1723605099433,-404.78727177,0.00015068,2]
[334829548,1723605099443,-500.0,0.00015068,2]
[334829549,1723605099452,-609.62,0.00015068,2]
[334829550,1723605099462,-500.0,0.00015068,2]
[334829551,1723605099471,-500.0,0.00015068,2]
[334829552,1723605099481,-500.0,0.00015068,2]
[334829553,1723605099490,-500.0,0.00015068,2]
[334829554,1723605099499,-1268.63,0.00015068,2]
[334829555,1723605099509,-1098.68,0.00015068,2]
[334829556,1723605099519,-500.0,0.00015068,2]
[334829557,1723605099529,-500.0,0.00015068,2]
[334829558,1723605099538,-500.0,0.00015068,2]
[334829559,1723605099547,-322.85707066,0.00015068,2]
[334829560,1723605099556,-500.0,0.00015068,2]
[334829561,1723605099567,-1442.17,0.00015068,2]
[334829562,1723605099576,-530.97298484,0.00015068,2]
[334829563,1723605099586,-500.0,0.00015068,2]
[334829564,1723605099595,-2112.81,0.00015068,2]
[334829565,1723605099606,-2201.12,0.00015068,2]
[334829566,1723605099615,-935.54,0.00015068,2]
[334829567,1723605099625,-500.0,0.00015068,2]
[334829568,1723605099635,-500.0,0.00015068,2]
[334829569,1723605099645,-702.32,0.00015068,2]
[334829570,1723605099655,-500.0,0.00015068,2]
[334829571,1723605099666,-647.97,0.00015068,2]
[334829572,1723605099675,-500.0,0.00015068,2]
[334829573,1723605099685,-507.01,0.00015068,2]
[334829574,1723605099695,-500.0,0.00015068,2]
[334829575,1723605099704,-2514.69,0.00015068,2]
[334829576,1723605099714,-1346.58,0.00015068,2]
[334829577,1723605099724,-500.0,0.00015068,2]
[334829578,1723605099734,-500.0,0.00015068,2]
[334829579,1723605099744,-3141.73,0.00015068,2]
[334829580,1723605099754,-1144.08,0.00015068,2]
[334829581,1723605099763,-500.0,0.00015068,2]
[334829582,1723605099773,-1273.67,0.00015068,2]
[334829583,1723605099783,-500.0,0.00015068,2]
[334829584,1723605099793,-2542.61,0.00015068,2]
[334829585,1723605099803,-500.0,0.00015068,2]
[334829586,1723605099812,-500.0,0.00015068,2]
[334829587,1723605099930,-500.0,0.00015068,2]
[334829588,1723605099940,-500.0,0.00015068,2]
[334829589,1723605099950,-500.0,0.00015068,2]
[334829590,1723605099959,-2720.24,0.00015068,2]
[334829591,1723605099968,-743.4,0.00015068,2]
[334829592,1723605099978,-500.0,0.00015068,2]
[334829593,1723605099987,-1731.7,0.00015068,2]
[334829594,1723605099996,-1478.0,0.00015068,2]
[334829595,1723605100005,-500.0,0.00015068,2]
[334829596,1723605100014,-500.0,0.00015068,2]
[334829597,1723605100024,-500.0,0.00015068,2]
[334829598,1723605100033,-500.0,0.00015068,2]
[334829599,1723605100043,-3406.91,0.00015068,2]
[334829600,1723605100052,-500.0,0.00015068,2]
[334829601,1723605100063,-597.7,0.00015068,2]
[334829602,1723605100072,-500.0,0.00015068,2]